{"text_format":"2","workbook":"xlsx","n_sheets":1,"sheets":["Tabelle1"],"not_rendered":{"charts":0,"images":0,"macros":0,"external_links":0,"defined_names":0,"comments":0,"pivot_tables":0},"unopened":[],"bounds":{"document_bytes":16777216,"sheet_cells":100000,"run_cost":"one","rows_first":2000,"rows_last":500,"rows_between":2000,"halvings":0,"cell_chars":16384,"cell_head_chars":4096},"cells_cut":0,"cells_raw":0,"read":"whole","date_system":"1900"}

{"sheet":"Tabelle1","index":0,"n_rows":55,"n_cols":9,"rows_kept":55,"cut":false,"hidden":false,"merged":[]}
["Berater/Mandant/Personalnummer",{"$nulls":5},"Werte"]
["1. Schritt","Grunddaten des Arbeitnehmers",{"$nulls":4},"aus KUG Tabelle"]
[null,"wöchentliche Arbeitszeit",null,null,40,null,"(pauschaliertes)",null,"Eingabefelder"]
[null,"hochgerechnete monatliche Arbeitszeit",null,null,{"$f":"E3*4.33333333333333","v":173.3333333333332}]
[null,"Aufallstunden KUG",null,null,100]
[]
[null,"davon Ausfallstundne Feiertag",null,null,16]
[]
["2. Schritt","Berechnung  Sollentgelt = Summe der Werte unten:",null,null,null,{"$f":"SUM(E12:E16)","v":2815},1123.98,"Wert aus den Abrechnungsdaten des Arbeitnehmers ablesen"]
[null,"Lohnarten, die als Sollentgelt zugeordnet sind"]
[null,"ungekürzte Lohnbestandteile:"]
[null,{"$f":"B34","v":"Gehalt "},null,null,2000]
[null,"Zulage zum Gehalt",null,null,500]
[null,"Direktversicherung / mtl / Entgeltverzicht",null,null,-100]
[null,"Dienstwagen",null,null,415]
[]
["3. Schritt","Berechnung des Ist-Entgeltes (3.1. ohne Feiertag)= Summe der Werte unten:",null,null,null,{"$f":"SUM(E22:E26)","v":1372.66},637.20000000000005,"Wert aus den Abrechnungsdaten des Arbeitnehmers ablesen"]
["3.1.","zunächst ohne Berücksichtigung des Feiertages"]
[null,"Lohnarten die unter > Abrechnung > Einstellungen > Kurzarbeit als Ist-Entgelt zugeordnet sind:"]
[null,"jeweils die nach der Kürzung verbleibenden Beträge:"]
[]
[null,"Restbetrag des Gehaltes",null,null,846.13]
[null,"Rest Zulage zum Gehalt",null,null,211.53,null,{"$f":"G9-G17","v":486.78},"KUG ohne Berücksichtigung des Feiertages = Wert aus Tabelle für Sollentgelt abzüglich Wert aus Tabelle für Istentgelt"]
[null,"Direktversicherung / mtl / Entgeltverzicht",null,null,-100]
[null,"Dienstwagen",null,null,415]
[]
["3.2.","Berechnung des Ist-Entgeltes (inkl. Feiertagsvergütung Punkt 5)",null,null,null,{"$f":"F40+F17","v":1603.429230769231},715.03,"Wert aus den Abrechnungsdaten des Arbeitnehmers ablesen"]
["(aus 5.)","zuzüglich Feiertagsvergütung (Wert aus Punkt 5)"]
[]
["4. Schritt","Berechnung des Stundenlohns für die Feiertagsvergütung (volle Höhe)"]
[null,"Lohnarten"]
[null,"> Abrechnung > Einstellungen > Kürzungen mit > Kürzung WAG/KUG = X"]
[null,"(jeweils mit vollem Wert!)"]
[null,"Gehalt ",null,null,{"$f":"E12","v":2000}]
[null,"Zulage zum Gehalt",null,null,{"$f":"E13","v":500}]
[null,"Summe",null,null,{"$f":"SUM(E34:E35)","v":2500}]
[null,"geteilt durch hochgerechnete Arbeitszeit",null,null,{"$f":"E4","v":173.3333333333332}]
[null,"ergibt Wert pro Stunde für Feiertag",null,null,{"$f":"E36/E37","v":14.423076923076934}]
[]
["5. Schritt ","Berechnung der Feiertagsvergütung für Istentgelt",null,null,null,{"$f":"E38*E7","v":230.76923076923094}]
[null,"mit Wert aus Schritt 4) (Stunden x Feiertagsstunden)"]
[]
["6. Schritt","Berechnung der Feiertagsvergütung in Höhe von KUG"]
[null,"Pauschaliertes Nettoentgelt (Sollentgelt) - Wert aus KUG-Tabelle",{"$nulls":4},{"$f":"G9","v":1123.98}]
["abzgl.","(pauschal. Istentgelt aus Punkt 3.1) ohne Feiertagsvergütung)",{"$nulls":4},{"$f":"G17","v":637.20000000000005}]
[null,"Differenz = KUG (ohne Feiertagsvergütung)",{"$nulls":4},{"$f":"G44-G45","v":486.78}]
[null,"geteilt durch die KUG Stunden",{"$nulls":4},{"$f":"E5","v":100}]
[null,"Betrag pro Stunde",{"$nulls":4},{"$f":"G46/G47","v":4.8677999999999999}]
[null,"dieser Wert wird gerundet",{"$nulls":4},{"$f":"ROUND(G48,2)","v":4.87}]
[null,"ergibt eine Feiertagsvergütung in Höhe von",{"$nulls":4},{"$f":"G49*E7","v":77.92}]
[]
["7. Schritt","Berechnung des Kurzarbeitergeld inkl. Feiertagsvergütung"]
[null,"pauschaliertes Nettoentgelt (Sollentgelt) aus Punkt 2)",{"$nulls":4},{"$f":"G9","v":1123.98}]
[null,"abzüglich pauschaliertes Nettoentgelt (Istentgelt) aus Punkt 3.2)",{"$nulls":4},{"$f":"G27","v":715.03}]
[null,"KUG inkl. Berücksichtigung des Feiertages",{"$nulls":4},{"$f":"G53-G54","v":408.95000000000005}]